Workbook

Sheet FTV Div Splits
A1: Div | B1: Team Name | C1: TIMES | D1: Web or Declared | E1: Format | F1: Break out | G1: Round Robins | H1: Heats | I1: Heats per Team | J1: Races per Team | K1: Races per Div | M1: Time AX Div | N1: Between Teams | O1: Between Divs | Q1: Timing Hrs
A2: Div 1 | B2: Norwest Thunderdogs 1 | C2: 16.102 | D2: Web | F2: =+C2-0.5 -> 15.602
A3: Div 1 | B3: Norwest Thunderdogs 2 | C3: 18.111 | D3: Web | E3: Handicap | F3: =+C3-0.5 -> 17.611 | G3: 2 | H3: Best of 5 | I3: 18-30 | J3: 6 | K3: 12 | M3: 3.454 | N3: 2.009 | Q3: 2
A4: Div 1 | B4: Tsunami Wave Riders | C4: 18.502 | D4: Web | F4: 18.002 | N4: 0.391
A5: Div 1 | B5: Unleashed Drive | C5: 19.556 | D5: Web | F5: 19.056 | N5: 1.054
A6: Div 2 | B6: City Slickers | C6: 21.2 | D6: Dec | F6: =C6-0.5 -> 20.7 | N6: 1.644 | O6: 1.644
A7: Div 2 | B7: Belconnen Speeding Bullets | C7: 21.65 | D7: Dec | E7: Regular | F7: =C7-0.5 -> 21.15 | G7: 3 | H7: Best of 5 | I7: 18-30 | J7: 6 | K7: 9 | M7: 0.666 | N7: 0.45 | Q7: 1.5
A8: Div 2 | B8: Wrascally Woofers | C8: 21.866 | D8: Web | F8: 20.7 | N8: 0.216
A9: Div 3 | B9: Tuggeranong Screaming Torpedoes | C9: 22.96 | D9: Web | F9: =+C9-0.5 -> 22.46 | N9: 1.094 | O9: 1.094
A10: Div 3 | B10: MAD Dash | C10: 23 | D10: Dec | E10: Regular | F10: =+C10-0.5 -> 22.5 | G10: 3 | H10: Best of 5 | I10: 18-30 | J10: 6 | K10: 9 | M10: 0.04 | N10: 0.04 | Q10: 1.5
A11: Div 3 | B11: Tsunami Chop Hoppers | C11: 23 | D11: Dec | F11: =+C11-0.5 -> 22.5 | N11: 0
A12: Div 4 | B12: Zephyrs | C12: 23.878 | D12: Web | F12: =C12-0.5 -> 23.378 | N12: 0.878 | O12: 0.878
A13: Div 4 | B13: Munchkins | C13: 30.2 | D13: Dec | E13: Handicap | F13: =C13-0.5 -> 29.7 | G13: 3 | H13: Best of 5 | I13: 18-30 | J13: 6 | K13: 9 | M13: 6.623 | N13: 6.322 | Q13: 1.5
A14: Div 4 | B14: Widdle Woofers | C14: 30.501 | D14: Web | F14: =C14-0.5 -> 30.001 | N14: 0.301
A15: Open 1 | B15: Thunderdog Stormchasers | C15: 17 | D15: Dec | F15: =C15-0.5 -> 16.5
A16: Open 1 | B16: Canberra X-traordinary | C16: 17.8 | D16: Dec | E16: Handicap | F16: =C16-0.5 -> 17.3 | G16: 2 | H16: Best of 5 | I16: 18-30 | J16: 6 | K16: 12 | M16: 3 | N16: 0.8
A17: Open 1 | B17: Star Power - SthX | C17: 19.5 | D17: Dec | F17: 19 | N17: 1.7 | Q17: 2
A18: Open 1 | B18: Thunderdog Tornado | C18: 20 | D18: Dec | F18: 19.5 | N18: 0.5
A19: Open 2 | B19: Belconnen Random Bullets | C19: 21.8 | D19: Dec | F19: 21.3 | N19: 1.8 | O19: 1.8
A20: Open 2 | B20: High Flyers | C20: 24.1 | D20: Dec | E20: Handicap | F20: 23.6 | G20: 3 | H20: Best of 5 | I20: 18-30 | J20: 6 | K20: 9 | M20: 2.7 | N20: 2.3 | Q20: 1.5
A21: Open 2 | B21: Flyball Friends | C21: 24.5 | D21: Dec | F21: 24 | N21: 0.4
K22: Total 60 Races | P22: =SUM(Q3:Q21) -> 10
